Cogmind - Beta 14 @@@ ROGUE MODE // 2024.09.20 @ 02:10:13 Player: DazzlePack Result: Destroyed by D-53 Grenadier with Mini Grenade Launcher Performance ------------- Evolutions (0) 0 Regions Visited (2) 400 Robots Destroyed (18) 90 Value Destroyed (364) 364 Prototype IDs (5) 100 Alien Tech Used (0) 0 Bonus (0) 0 TOTAL SCORE: 954 Bonus ------- None Cogmind --------- Core Integrity 0/250 Matter 300/300 Energy 98/100 System Corruption 0% Temperature Cool (0) Movement Rolling (90) Location -10/Mines Parts ------- > --- POWER (1) -------- (None) > --- PROPULSION (2) --- Armored Wheel Armored Wheel > --- UTILITY (2) ------ Small Storage Unit Signal Interpreter > --- WEAPON (2) ------- Autogun Autogun > --- INVENTORY (8) ---- Armored Wheel Armored Wheel Sensor Array Light Armor Plating Hacking Suite Authchip [Propulsion] Autogun Autogun Peak State ------------ > --- POWER ------------ Light Ion Engine > --- PROPULSION ------- Armored Wheel Armored Wheel > --- UTILITY ---------- Small Storage Unit Signal Interpreter > --- WEAPON ----------- Autogun Autogun > --- INVENTORY -------- Improved Treads Improved Treads Armored Wheel Hacking Suite Authchip [Propulsion] Assault Rifle Assault Rifle Light Assault Rifle [Rating: 12] Favorites ----------- Power Light Ion Engine Engine Light Ion Engine Propulsion Flight Unit Treads Light Treads Leg Aluminum Leg Wheel Armored Wheel Flight Unit Flight Unit Utility Signal Interpreter Device Sensor Array Storage Small Storage Unit Processor Signal Interpreter Weapon Assault Rifle Ballistic Gun Assault Rifle Ballistic Cannon Light Cannon Slashing Weapon Mining Claw Build | -11 -10 -10 ------- Run | Yrd Mat Min Slots Evolved . | . . . Power . | . . . Propulsion . | . . . Utility . | . . . Weapon . | . . . Parts Attached 34 | 10 24 . Power 2 | 1 1 . Engine 2 | 1 1 . Core . | . . . Reactor . | . . . Propulsion 14 | 5 9 . Treads 2 | . 2 . Leg 4 | 3 1 . Wheel 6 | 2 4 . Hover . | . . . Flight 2 | . 2 . Utility 9 | 2 7 . Device 5 | 2 3 . Storage 3 | . 3 . Processor 1 | . 1 . Hackware . | . . . Protection . | . . . Artifact . | . . . Weapon 9 | 2 7 . Energy Gun . | . . . Energy Cannon . | . . . Ballistic Gun 7 | 2 5 . Ballistic Cannon 1 | . 1 . Launcher . | . . . Special Weapon . | . . . Impact Weapon . | . . . Slashing Weapon 1 | . 1 . Piercing Weapon . | . . . Special Melee Weapon . | . . . Unidentified Prototypes . | . . . Parts Lost 1 | . . 1 Power 1 | . . 1 Propulsion . | . . . Utility . | . . . Weapon . | . . . Highest Loss Streak 1 | . . 1 To Critical Strikes . | . . . Average Slot Usage (%) 99 | . 99 98 Engine 13 | . 14 12 Treads 1 | . 1 . Wheel 12 | . 8 28 Flight 13 | . 17 . Device 8 | . 11 . Storage 6 | . 3 14 Processor 12 | . 12 14 Ballistic Gun 27 | . 27 28 Peak Build Rating 12 | 9 12 12 Average Rating 8 | 4 8 11 On Entrance 7 | . 9 12 Naked Turns . | . . . Heaviest Build 16 | 8 16 16 Greatest Support 24 | 10 24 24 Greatest Overweight (x) 3 | 1 3 . Average Overweight (x) . | . . . Largest Inventory Capacity 8 | 5 8 8 Average Capacity 6 | 5 5 8 Most Carried 8 | 5 8 8 Average Carried 5 | 2 5 8 Final Capacity 8 | 5 8 8 Final Carried 8 | 5 8 8 Class Distribution -------------------- 54% | Mutant 45% | Scavenger-Mutant Dominant Class ---------------- Scavenger-Mutant | -10/Materials Mutant | -10/Mines Resources | -11 -10 -10 ----------- Run | Yrd Mat Min Matter Collected 897 | 331 441 125 Remotely . | . . . Salvage Created 534 | 72 370 92 Parts 48 | 9 35 4 Haulers Intercepted 1 | . 1 . Recyclers Shooed . | . . . Parts Field Recycled . | . . . Retrieved Matter . | . . . Parts Self-Destructed . | . . . Prevented . | . . . Kills | -11 -10 -10 ------- Run | Yrd Mat Min Combat Hostiles Destroyed 13 | 1 7 5 Guns 12 | 1 6 5 AOE 1 | . 1 . Classes Destroyed 8 | 2 5 1 Builder 2 | . 2 . Tunneler 2 | 2 . . Hauler 1 | . 1 . Operator 1 | . 1 . Watcher 2 | . 2 . Swarmer 4 | . 2 2 Grunt 6 | 1 5 . Assembled 3 | . . 3 Best Kill Streak 3 | 2 3 3 Combat Bots Only 3 | 1 2 3 Max Kills in Single Turn 2 | 2 2 1 Gunslinging . | . . . Exploded 1 | . 1 . Melee . | . . . Uniques/NPCs Destroyed . | . . . Combat | -11 -10 -10 -------- Run | Yrd Mat Min Hostile Shots Fired 83 | 3 38 42 Missed 28 | . 16 12 Damage Taken 735 | 30 197 508 Core 252 | 30 48 174 Absorbed by Shields . | . . . Core Remaining (%) 88 | 88 . . Volleys Fired 62 | 11 37 14 Largest 2 | 2 2 2 Hottest 46 | 40 46 46 Shots Fired 123 | 22 73 28 Gun 123 | 22 73 28 Cannon . | . . . Launcher . | . . . Special . | . . . Kinetic 123 | 22 73 28 Thermal . | . . . Explosive . | . . . Electromagnetic . | . . . Robot Hit Streak 6 | 6 5 5 Robot Miss Streak 5 | 2 5 2 Penetration Max . | . . . Secondary Targets 1 | . 1 . Max Gunslinging Chain 1 | . 1 . Shots Hit Robots 64 | 13 34 17 Core Hits 33 | 4 21 8 Critical Kills . | . . . Critical Parts Destroyed . | . . . Critical Strikes . | . . . Melee Attacks . | . . . Impact . | . . . Slashing . | . . . Piercing . | . . . Sneak Attacks . | . . . Combat Hostiles . | . . . Follow-up Attacks . | . . . Damage Inflicted 1103 | 144 703 256 Guns 855 | 144 455 256 Cannons . | . . . Explosions 248 | . 248 . Melee . | . . . Ramming . | . . . Kinetic 855 | 144 455 256 Thermal . | . . . Explosive 248 | . 248 . Electromagnetic . | . . . Impact . | . . . Slashing . | . . . Piercing . | . . . Highest Corruption . | . . . Average Corruption . | . . . Corruption Purged . | . . . Corruption Blocked . | . . . Overload Shots . | . . . Overflow Damage 18 | . 18 . Projectiles . | . . . Explosions 18 | . 18 . Melee . | . . . Knockbacks . | . . . Impact . | . . . Kinetic . | . . . Secondary . | . . . Self-Inflicted Damage . | . . . Shots . | . . . Rammed . | . . . Targets Rammed . | . . . Kicked . | . . . Crushed . | . . . Highest Temperature 18 | 12 18 12 Average Temperature 6 | 7 8 6 Received Heat Transfer 39 | 18 21 . Siege Activations . | . . . Robots Corrupted . | . . . Combat Hostiles . | . . . Parts Fried . | . . . Impact Corruptions . | . . . Robots Melted . | . . . Combat Hostiles . | . . . Parts Melted . | . . . Heat Transferred . | . . . Parts Sabotaged . | . . . Parts Stolen . | . . . Parts Stripped . | . . . Power Chain Reactions . | . . . Alert | -11 -10 -10 ------- Run | Yrd Mat Min Peak Influence 295 | 31 295 97 Initial 27 | . 20 27 Average 90 | 12 105 87 Maximum Alert Level 1 | . 1 . Low Security (%) 88 | 100 82 100 Level 1 11 | . 17 . Level 2 . | . . . Level 3 . | . . . Level 4 . | . . . Level 5 . | . . . High Security . | . . . Max Security . | . . . Squads Dispatched 1 | . 1 . Investigation . | . . . Extermination . | . . . Reinforcement 1 | . 1 . Assault . | . . . Garrison . | . . . Intercept . | . . . Searches Triggered . | . . . Construction Impeded . | . . . Haulers Reinforced . | . . . Active Scanning Responses . | . . . Cargo Convoy Interrupts . | . . . Stealth | -11 -10 -10 --------- Run | Yrd Mat Min Distress Signals 1 | . 1 . Communications Jammed . | . . . Distress Signals . | . . . Times Spotted 25 | 1 16 8 Peak Tracking Total 5 | 1 5 4 Tactical Retreats 1 | . 1 . Traps | -11 -10 -10 ------- Run | Yrd Mat Min Traps Triggered . | . . . Indirectly . | . . . Trap Hack Attempts . | . . . Triggered . | . . . Disarmed . | . . . Reprogrammed . | . . . Reused . | . . . Traps Extracted . | . . . Installed . | . . . Triggered . | . . . Machines | -11 -10 -10 ---------- Run | Yrd Mat Min Machines Disabled 2 | . 2 . Max in Single Turn 2 | . 2 . Machines Repaired . | . . . Machines Dismantled . | . . . Machines Sabotaged . | . . . Overloaded Fab Kills . | . . . Hacking | -11 -10 -10 --------- Run | Yrd Mat Min Machines Accessed 8 | . 8 . Terminals 6 | . 6 . Fabricators . | . . . Repair Stations . | . . . Recycling Units 2 | . 2 . Scanalyzers . | . . . Garrison Access . | . . . Total Hacks 33 | . 33 . Successful 18 | . 18 . Failed 15 | . 15 . Catastrophic 3 | . 3 . Database Lockouts . | . . . Manual 8 | . 8 . Terminals 26 | . 26 . Fabricators . | . . . Repair Stations . | . . . Recycling Units 7 | . 7 . Scanalyzers . | . . . Garrison Access . | . . . Terminal Hacks 15 | . 15 . Record 5 | . 5 . Robot Analysis 1 | . 1 . Prototype ID Bank 3 | . 3 . Alert Level 3 | . 3 . Unreport Threat 1 | . 1 . Dispatch Records 1 | . 1 . Hauler Manifests 1 | . 1 . Fabricator Hacks . | . . . Repair Station Hacks . | . . . Recycling Unit Hacks 3 | . 3 . Report Inventory 2 | . 2 . Retrieve Components 1 | . 1 . Scanalyzer . | . . . Garrison Access Hacks . | . . . Unauthorized Hacks . | . . . Terminals . | . . . Fabricators . | . . . Repair Stations . | . . . Recycling Units . | . . . Scanalyzers . | . . . Garrison Access . | . . . Data Cores Recovered . | . . . Used . | . . . Hacking Detections 7 | . 7 . Full Trace Events . | . . . Feedback Events . | . . . Feedback Blocked . | . . . Robot Schematics Acquired . | . . . Robots Built . | . . . Authchips . | . . . Time . | . . . Total Robot Build Rating . | . . . Part Schematics Acquired . | . . . Parts Built . | . . . Authchips . | . . . Time . | . . . Total Part Build Rating . | . . . Parts Repaired . | . . . Time . | . . . Parts Recycled . | . . . Recycled Matter . | . . . Retrieved Matter . | . . . Retrieved Components 2 | . 2 . Parts Scanalyzed . | . . . Part Schematics Acquired . | . . . Parts Damaged . | . . . Bothacking | -11 -10 -10 ------------ Run | Yrd Mat Min Used RIF Installer . | . . . Robots Hacked . | . . . Non-combat . | . . . Combat . | . . . Robot Hacks Applied . | . . . Relay Couplers Released . | . . . Fabnet Peak Effective % . | . . . Robots Rewired . | . . . Allies Hacked . | . . . Hacks Repelled . | . . . Allies | -11 -10 -10 -------- Run | Yrd Mat Min Total Allies . | . . . Largest Group . | . . . Highest-Rated Group . | . . . Highest-Rated Ally . | . . . Total Orders . | . . . Ally Attacks . | . . . Total Damage . | . . . Kills . | . . . Allies Corrupted . | . . . Allies Melted . | . . . Intel | -11 -10 -10 ------- Run | Yrd Mat Min Robot Analysis Total 1 | . 1 . Derelict Logs Recovered 1 | . . 1 Drone Launches . | . . . Drone Recoveries . | . . . Exploration | -11 -10 -10 ------------- Run | Yrd Mat Min Turns Passed 901 | 103 613 185 Spaces Moved 1145 | 70 911 164 Core 34 | 33 1 . Treads . | . . . Legs 5 | 4 1 . Wheels 364 | 33 167 164 Hover . | . . . Flight 742 | . 742 . Fastest Speed 37 | 50 37 90 Average Speed 54 | 71 46 90 Slowest Speed 200 | 120 200 90 Overloaded Moves . | . . . Propulsion Burnouts . | . . . Robots Hopped . | . . . Cave-ins Triggered . | . . . Exploration Rate (%) 48 | 7 99 38 Regions Visited 2 Branch Regions 1 Pre-discovered Areas . | . . . Known Exits Taken 1 | . 1 . Unknown Exits Taken 1 | 1 . . Scrap Searched 2 | . . 2 Spaces Dug . | . . . Terrain Destroyed 7 | . 7 . Melee . | . . . Projectile . | . . . AOE 7 | . 7 . Terrain Rammed . | . . . Walls Destroyed . | . . . Machines Disabled . | . . . Actions | -11 -10 -10 --------- Run | Yrd Mat Min Total 1310 | 97 1034 179 Wait 16 | 2 13 1 Move 1143 | 69 910 164 Hop . | . . . Pick Up 23 | 5 18 . Fast Attach 23 | 7 16 . Attach 3 | . 3 . Detach 2 | . 2 . Swap 8 | 3 5 . Drop 30 | . 30 . Fire 62 | 11 37 14 Melee . | . . . Ram . | . . . Kick . | . . . Crush . | . . . Escape Stasis . | . . . Rewire . | . . . Trap . | . . . Miscellaneous . | . . . Route ------- -11/Scrapyard -10/Materials (discovered 4 exits: *Mat x3 / *Min) -10/Mines History --------- Turn | Location | Event 2 | -11/Scrapyard | Met Revision 17 43 | -11/Scrapyard | Discovered new exit (range 8) 104 | -11/Scrapyard | Entered Materials 282 | -10/Materials | Discovered new exit (range 4) 282 | -10/Materials | Identified exit to Materials 293 | -10/Materials | Discovered exit to Materials (range 16) 360 | -10/Materials | Discovered exit to Materials (range 16) 390 | -10/Materials | Discovered new exit (range 13) 395 | -10/Materials | Identified exit to Mines 444 | -10/Materials | Build established: Scavenger-Mutant 717 | -10/Materials | Entered Mines 765 | -10/Mines | Learned Materials emergency access door positions 787 | -10/Mines | Assembled infested the area 833 | -10/Mines | Core integrity fell below 50% 850 | -10/Mines | Build established: Mutant 902 | -10/Mines | Destroyed by D-53 Grenadier with Mini Grenade Launcher Last Messages --------------- Data stored: Materials emergency access points. 00773_ Searching scrap... 00773_ Found Hover Unit. 00773_ Found 40 Matter. 00787_ ALERT: Infestation in the mines, dispatching Demolisher response squad. 00815_ as-52626 destroyed. 00826_ as-76181 destroyed. 00839_ as-02896 destroyed. 00842_ Acquired 19 matter. 00843_ Acquired 17 matter. 00845_ Acquired 19 matter. 00853_ Acquired 28 matter. 00856_ Acquired 5 matter. 00861_ U-05 Engineer lays Concrete. 00878_ K-01 Serf collects debris. 00878_ U-05 Engineer lays Concrete. 00881_ Ion Engine destroyed. 00882_ K-01 Serf collects debris. 00882_ U-05 Engineer lays Concrete. Map ----- +----------------------------------------------------+ | ?????????????????????# ?# #?# """ #??????????? | | ?????????????????????# ## ### #??????????? | | ?????????????????????#| """ """ #??????????? | | ?????????????????????##=##### """ """ #??????????? | | ??????????????????????#%#???# """ """ #??????????? | | ?????????????????######]#???# #??????????? | | ?????????????????# !#???###########??????????? | | ?????????????????# ######????????????????????????? | | ?????????????????# #?????????????????????????????? | | ?????????????????# #?????????????????????????????? | | ?????????????????# #?????????????####????????????? | | ?????????????????# #????????????## ##???????????? | | ?????????????????# #?###""####### ##??????????? | | ?????????????????# #?# X #??????????? | | ?????????????????# ### #### #??????????? | | ?????????????????# #??## #??????????? | | ?????????????????###### ##???# #??????????? | | ??????????????????????# ##????# ##??????????? | | ??????????????????????# ##?????# #???????????? | | ??????????????????????# #??????# #???????????? | | ??????????????????????## ##????### #???????????? | | ??????????????????????#####?????# %#???????????? | | ??????????????????????# ###???# =#???????????? | | ??????????????????????# ##### ###???????????? | | ????????????????####### # ## #?????????????? | | ?????#??????????# d @ # #?????????????? | | ??? ?# ?????????# #### #?????????????? | | ? # # ##???????# #??# #????????????? | | # %# #??????# #??# # #????????????? | | ??????# #??## #### ##????????????? | | % #?????# #???# ##??## ##????????????? | | #?????# #???# ##???# ###??????????? | | #?????# #???## #### ##?????????? | | #?????# ##???## #?????????? | | #?#### ###??#d #????????? | | ### #### ????????? | | " = ## ????????? | | #????????? | | ?# ### ##?????????? | | ?## ### ##??#### ##??????????? | | ??## ### ##???????# #???????????? | | ???## #?# #?????????# #??????????? | | ????#### ##?## #??????????? ???????????? | | ?####### ###???## #????????????????????????? | | ## ## ##??????# #????????????????????????? | | # #??????## ##???????????????????????? | | #??##### ##??????????????????????? | | ##??# #??????????????????????? | | ### ##??# #??????????????????????? | | #######?####???# #??????????????????????? | +----------------------------------------------------+ Best States ------------- Heat Dissipation 25 Energy Generation 10 Energy Capacity 325 Matter Stores 300 Matter Capacity 300 Sight Range 16 Robot Scan Range 14 Terrain Scan Range 16 Terrain Scan Density 10 Evasion (%) 62 Authchip Count 1 Item Schematics ----------------- None Robot Schematics ------------------ None Fabricated ------------ Nothing Alien Tech Used ----------------- None Achievements -------------- None Challenges ------------ None Game ------ Seed MinesnifferBattleStorm Manual? 0 Play Time 01:24:49 Cumulative 4.6 hours Start 2024.09.19 @ 14:06:39 End 2024.09.20 @ 02:10:13 Sessions 8 Manual Loads 0 Difficulty Rogue Special Mode None Game No. 2 Rogue 2 Adventurer 0 Explorer 0 Win Type - Total 0 Types 0/0/0/0/0/0/0/0/0 Lore% 1 Gallery% 4 Achievement% 8 Wizard Run 0 Options --------- Layout 1 ASCII 0 Keyboard 0 Movement Numpad Keybinds 0 Fullscreen 1 Font 24/Terminus Map View 50x35 Zoom Use 29% Tactical HUD 1 Map Filters NONE Filters NONE Steam 1 RUN: 1fc4a6a9-bb8d-4d95-bb4e-1c91b258ece9